Cogmind - Beta 11.1 @@@ ROGUE MODE // 2022.10.27 @ 14:37:42 Player: Grimalkyne Result: Self-destructed Performance ------------- Evolutions (3) 1500 Regions Visited (9) 1800 Robots Destroyed (97) 485 Value Destroyed (2898) 2898 Prototype IDs (15) 300 Alien Tech Used (0) 0 Bonus (424) 424 TOTAL SCORE: 7407 Bonus ------- Follower Combat Kills 124 Aligned with FarCom 300 Cogmind --------- Core Integrity 510/700 Matter 87/300 Energy 281/290 System Corruption 4% Temperature Critical (500) Movement Treading (160) Location -7/Storage Parts ------- > --- POWER (1) -------- Improved Deuterium Engine > --- PROPULSION (4) --- Light Treads Light Treads Improved Treads > --- UTILITY (5) ------ High-capacity Storage Unit Improved Signal Interpreter Advanced Targeting Computer Layered Light Armor Plating > --- WEAPON (3) ------- Gatling Laser > --- INVENTORY (20) --- Improved Deuterium Engine Hybrid Deuterium Engine Armored Huge Wheel Cryofiber Web Improved Heat Sink High-capacity Matter Pod (200) Gravity Neutralizer Trap Scanner Improved Targeting Computer Matter Filter Particle Charger Utility Shielding Improved Hardlight Generator Improved Shield Generator Long-range Tractor Beam Advanced Beam Rifle Advanced Beam Rifle Gauss Cannon Heavy Missile Launcher Peak State ------------ > --- POWER ------------ Improved Deuterium Engine > --- PROPULSION ------- Light Treads Light Treads Improved Treads Improved Treads > --- UTILITY ---------- High-capacity Storage Unit Gravity Neutralizer Improved Signal Interpreter Advanced Targeting Computer Improved Medium Armor Plating > --- WEAPON ----------- AWS/Thermal Gauss Rifle > --- INVENTORY -------- Light Nuclear Core Micro Nuclear Core Light Treads Light Treads Cryofiber Web Improved Heat Sink High-capacity Matter Pod Advanced Weight Redist. System Trap Scanner Improved Targeting Computer Matter Filter Particle Charger Utility Shielding Improved Hardlight Generator Improved Shield Generator Long-range Tractor Beam Gauss Rifle Advanced Assault Cannon Heavy Missile Launcher Heavy Missile Launcher [Rating: 53] Favorites ----------- Power Improved Deuterium Engine Engine Improved Deuterium Engine Power Core Light Nuclear Core Propulsion Light Treads Treads Light Treads Leg Aluminum Leg Utility Signal Interpreter Device Improved Heat Sink Storage Large Storage Unit Processor Signal Interpreter Protection Heavy Armor Plating Weapon Improved Assault Rifle Energy Gun AWS/Thermal Energy Cannon Firepult Ballistic Gun Improved Assault Rifle Ballistic Cannon Advanced Assault Cannon Launcher Improved Grenade Launcher Build | -11 -10 -10 -9 -9 -9 -8 -8 -7 -7 ------- Run | Scr Mat Min Mat Min Exi Min Mat Fac Sto Slots Evolved 6 | . . . 2 . . . 2 2 . Power . | . . . . . . . . . . Propulsion 2 | . . . . . . . 1 1 . Utility 3 | . . . 1 . . . 1 1 . Weapon 1 | . . . 1 . . . . . . Parts Attached 81 | 6 13 4 17 1 3 . 5 10 22 Power 9 | 1 2 2 1 . . . 1 1 1 Engine 6 | 1 1 1 1 . . . . 1 1 Core 3 | . 1 1 . . . . 1 . . Reactor . | . . . . . . . . . . Propulsion 25 | 2 3 . 4 1 . . 1 5 9 Treads 22 | . 2 . 4 1 . . 1 5 9 Leg 3 | 2 1 . . . . . . . . Wheel . | . . . . . . . . . . Hover . | . . . . . . . . . . Flight . | . . . . . . . . . . Utility 20 | 1 4 2 3 . . . 2 4 4 Device 3 | . . . 2 . . . . . 1 Storage 6 | 1 2 2 . . . . . 1 . Processor 4 | . 1 . 1 . . . . 2 . Hackware . | . . . . . . . . . . Protection 7 | . 1 . . . . . 2 1 3 Artifact . | . . . . . . . . . . Weapon 27 | 2 4 . 9 . 3 . 1 . 8 Energy Gun 8 | 1 . . 4 . 2 . . . 1 Energy Cannon 1 | . . . . . 1 . . . . Ballistic Gun 13 | 1 4 . 4 . . . 1 . 3 Ballistic Cannon 2 | . . . 1 . . . . . 1 Launcher 3 | . . . . . . . . . 3 Special Weapon . | . . . . . . . . . . Impact Weapon . | . . . . . . . . . . Slashing Weapon . | . . . . . . . . . . Piercing Weapon . | . . . . . . . . . . Special Melee Weapon . | . . . . . . . . . . Unidentified Prototypes 4 | . 1 . . . 2 . . . 1 Parts Lost 9 | . 3 . 2 . . . . . 4 Power 2 | . 2 . . . . . . . . Propulsion 2 | . . . . . . . . . 2 Utility 2 | . . . 1 . . . . . 1 Weapon 3 | . 1 . 1 . . . . . 1 Highest Loss Streak 3 | . 2 . 1 . . . . . 3 To Critical Strikes . | . . . . . . . . . . Average Slot Usage (%) 93 | . 98 100 98 100 94 88 90 83 96 Engine 7 | . 10 9 8 11 11 11 3 5 7 Core 1 | . 2 4 2 . . . 5 1 . Treads 23 | . 6 28 22 22 22 22 27 30 29 Leg 2 | . 21 . . . . . . . . Device 3 | . . . 8 11 11 11 9 . . Storage 9 | . 14 14 11 11 11 11 9 7 7 Processor 12 | . 6 14 12 11 11 11 9 14 15 Protection 5 | . 7 . . . . . 9 6 14 Energy Gun 7 | . 2 . 11 11 11 11 9 7 4 Ballistic Gun 14 | . 25 28 16 22 16 11 9 7 9 Ballistic Cannon 1 | . . . 5 . . . . . 4 Naked Turns . | . . . . . . . . . . Heaviest Build 79 | 12 29 31 40 39 55 41 44 77 79 Greatest Support 86 | 20 40 40 43 43 43 43 63 86 86 Greatest Overweight (x) 3 | 3 . . . . 1 . . . . Average Overweight (x) . | . . . . . . . . . . Largest Inventory Capacity 25 | 8 15 25 15 15 15 15 15 20 20 Average Capacity 15 | 7 9 15 15 15 15 15 15 17 20 Most Carried 20 | 5 9 14 15 15 15 15 15 20 20 Average Carried 14 | 2 7 12 13 15 14 15 14 16 19 Final Capacity 20 | 8 15 15 15 15 15 15 15 20 20 Final Carried 20 | 5 9 14 15 15 15 15 15 20 20 Class Distribution -------------------- 35% | Scavenger-Skirmisher 23% | Scavenger-Gunner 17% | Mutant 9% | Scavenger-Tank 6% | Skirmisher 4% | Tank Dominant Class ---------------- Mutant | -10/Materials Mutant | -10/Mines Scavenger-Gunner | -9/Materials Scavenger-Gunner | -9/Mines Scavenger-Gunner | -9/Exiles Scavenger-Skirmisher | -8/Mines Scavenger-Skirmisher | -8/Materials Scavenger-Skirmisher | -7/Factory Scavenger-Tank | -7/Storage Resources | -11 -10 -10 -9 -9 -9 -8 -8 -7 -7 ----------- Run | Scr Mat Min Mat Min Exi Min Mat Fac Sto Matter Collected 2465 | 260 300 340 551 10 . . 89 197 718 Remotely . | . . . . . . . . . . Salvage Created 3632 | . 569 223 853 . . . 99 598 1290 Parts 207 | . 34 17 64 . . . 6 30 56 Haulers Intercepted 9 | . 1 . 2 . . . . 1 5 Recyclers Shooed 1 | . 1 . . . . . . . . Parts Field Recycled . | . . . . . . . . . . Retrieved Matter . | . . . . . . . . . . Parts Self-Destructed . | . . . . . . . . . . Prevented . | . . . . . . . . . . Kills | -11 -10 -10 -9 -9 -9 -8 -8 -7 -7 ------- Run | Scr Mat Min Mat Min Exi Min Mat Fac Sto Combat Hostiles Destroyed 68 | . 9 7 21 . . . 1 11 19 Guns 59 | . 8 7 16 . . . 1 10 17 Cannons 6 | . . . 5 . . . . . 1 AOE 2 | . 1 . . . . . . . 1 Classes Destroyed 13 | . 5 1 3 . . . 2 2 . Worker 5 | . . . 2 . . . . 1 2 Builder 3 | . 1 . 2 . . . . . . Hauler 9 | . 1 . 2 . . . . 1 5 Recycler 3 | . 1 . . . . . . . 2 Operator 2 | . . . . . . . 1 1 . Watcher 7 | . 2 . 1 . . . 1 1 2 Swarmer 19 | . . 3 9 . . . . 4 3 Grunt 28 | . 9 4 5 . . . . 1 9 Brawler 1 | . . . . . . . . 1 . Duelist 1 | . . . 1 . . . . . . Sentry 12 | . . . 6 . . . . 1 5 Hunter 3 | . . . . . . . 1 1 1 Programmer 4 | . . . . . . . . 3 1 Best Kill Streak 7 | . 4 3 5 . . . 1 4 7 Combat Bots Only 4 | . 2 3 4 . . . 1 4 4 Max Kills in Single Turn 3 | . 2 1 1 . . . 1 3 2 Gunslinging . | . . . . . . . . . . Exploded 1 | . 1 . . . . . . . 1 Melee . | . . . . . . . . . . Uniques/NPCs Destroyed . | . . . . . . . . . . Combat | -11 -10 -10 -9 -9 -9 -8 -8 -7 -7 -------- Run | Scr Mat Min Mat Min Exi Min Mat Fac Sto Damage Taken 3921 | . 547 141 850 . . . 81 386 1916 Core 417 | . 107 8 112 . . . . 57 133 Absorbed by Shields . | . . . . . . . . . . Redirected to Shielding 22 | . 22 . . . . . . . . Regen/Repaired (Parts) 139 | . . . . . . . . . 139 Core Remaining (%) 81 | 100 . 54 . . . 72 100 . . Volleys Fired 189 | . 40 10 55 . . . 3 19 62 Largest 3 | . 2 2 3 . . . 1 1 3 Hottest 156 | . 60 46 114 . . . 23 28 156 Shots Fired 509 | . 75 20 162 . . . 14 70 168 Gun 430 | . 75 20 126 . . . 14 70 125 Cannon 77 | . . . 36 . . . . . 41 Launcher 2 | . . . . . . . . . 2 Special . | . . . . . . . . . . Kinetic 342 | . 65 20 109 . . . 3 21 124 Thermal 155 | . . . 53 . . . 11 49 42 Explosive 2 | . . . . . . . . . 2 Electromagnetic 10 | . 10 . . . . . . . . Robot Hit Streak 32 | . 16 7 24 . . . 6 22 32 Robot Miss Streak 4 | . 1 3 4 . . . 1 2 2 Penetration Max 1 | . . . . . . . . 1 1 Secondary Targets . | . . . . . . . . . . Autonomous 95 | . . . . . . . 11 49 35 Shots Hit Robots 379 | . 58 13 104 . . . 11 63 130 Core Hits 151 | . 23 8 39 . . . 4 19 58 Critical Kills . | . . . . . . . . . . Critical Parts Destroyed 3 | . 1 . . . . . . . 2 Critical Strikes 7 | . 1 . 4 . . . . . 2 Burn 4 | . . . 4 . . . . . . Destroy 3 | . 1 . . . . . . . 2 Melee Attacks . | . . . . . . . . . . Impact . | . . . . . . . . . . Slashing . | . . . . . . . . . . Piercing . | . . . . . . . . . . Sneak Attacks . | . . . . . . . . . . Combat Hostiles . | . . . . . . . . . . Follow-up Attacks . | . . . . . . . . . . Damage Inflicted 8363 | . 897 205 1708 . . . 290 1751 3512 Guns 7002 | . 872 205 1312 . . . 290 1751 2572 Cannons 1094 | . . . 386 . . . . . 708 Explosions 257 | . 25 . . . . . . . 232 Melee . | . . . . . . . . . . Ramming 10 | . . . 10 . . . . . . Kinetic 4724 | . 794 205 1136 . . . 24 381 2184 Thermal 3319 | . 25 . 562 . . . 266 1370 1096 Explosive 232 | . . . . . . . . . 232 Electromagnetic 78 | . 78 . . . . . . . . Impact . | . . . . . . . . . . Slashing . | . . . . . . . . . . Piercing . | . . . . . . . . . . Highest Corruption 4 | . 3 3 . . . . . 2 4 Average Corruption 2 | . 2 3 . . . . . 1 2 Corruption Purged . | . . . . . . . . . . Corruption Blocked . | . . . . . . . . . . Effects 50 | . 16 3 . . . . . 15 16 Message Errors 20 | . 4 2 . . . . . 8 6 Matter Fused 11 | . 5 1 . . . . . 2 3 Heat Flow Errors 1 | . 1 . . . . . . . . Energy Discharges 7 | . 2 . . . . . . 1 4 Data Loss (minor) 5 | . 3 . . . . . . 1 1 Data Loss (major) 3 | . 1 . . . . . . 1 1 Misfires 2 | . . . . . . . . 2 . Alerts 1 | . . . . . . . . . 1 Overload Shots . | . . . . . . . . . . Overflow Damage 12 | . . . 4 . . . . . 8 Projectiles 12 | . . . 4 . . . . . 8 Explosions . | . . . . . . . . . . Melee . | . . . . . . . . . . Knockbacks 8 | . . . 5 . . . . . 3 Impact . | . . . . . . . . . . Kinetic 8 | . . . 5 . . . . . 3 Secondary . | . . . . . . . . . . Self-Inflicted Damage 165 | . 32 . . . . . . . 133 Shots 3 | . 1 . . . . . . . 2 Rammed 1 | . . . 1 . . . . . . Targets Rammed 1 | . . . 1 . . . . . . Kicked . | . . . . . . . . . . Crushed . | . . . . . . . . . . Highest Temperature 500 | . 143 4 267 . . . . 2 500 Average Temperature 98 | . 33 3 71 . . . . 2 137 Received Heat Transfer 1137 | . 303 54 189 . . . . 33 558 Effects 15 | . . . 1 . . . . . 14 Shutdowns 4 | . . . . . . . . . 4 Energy Bleed 1 | . . . . . . . . . 1 Interference 1 | . . . 1 . . . . . . Matter Decay 3 | . . . . . . . . . 3 Short Circuit 1 | . . . . . . . . . 1 Damage (minor) 1 | . . . . . . . . . 1 Damage (major) 4 | . . . . . . . . . 4 Siege Activations . | . . . . . . . . . . Robots Corrupted . | . . . . . . . . . . Combat Hostiles . | . . . . . . . . . . Parts Fried . | . . . . . . . . . . Impact Corruptions . | . . . . . . . . . . Robots Melted 1 | . . . . . . . . 1 . Combat Hostiles 1 | . . . . . . . . 1 . Parts Melted 9 | . . . 1 . . . . 5 3 Heat Transferred 5323 | . 50 . 1702 . . . 333 1628 1610 Parts Sabotaged . | . . . . . . . . . . Parts Stolen . | . . . . . . . . . . Parts Stripped . | . . . . . . . . . . Power Chain Reactions 1 | . 1 . . . . . . . . Missiles Intercepted . | . . . . . . . . . . Alert | -11 -10 -10 -9 -9 -9 -8 -8 -7 -7 ------- Run | Scr Mat Min Mat Min Exi Min Mat Fac Sto Peak Influence 365 | . 180 192 305 135 . . 109 145 365 Initial 74 | . . 17 74 54 . . . 14 23 Average 95 | . 74 153 109 43 . . 49 32 243 Maximum Alert Level 1 | . . . 1 . . . . . 1 Low Security (%) 83 | 100 100 100 86 100 . 100 100 100 15 Level 1 16 | . . . 13 . . . . . 84 Level 2 . | . . . . . . . . . . Level 3 . | . . . . . . . . . . Level 4 . | . . . . . . . . . . Level 5 . | . . . . . . . . . . High Security . | . . . . . . . . . . Max Security . | . . . . . . . . . . Squads Dispatched 15 | . 2 . 1 1 . . 1 3 7 Investigation 2 | . 1 . . . . . . . 1 Extermination 4 | . . . . . . . . 3 1 Reinforcement 5 | . 1 . 1 . . . 1 . 2 Assault 3 | . . . . 1 . . . . 2 Garrison 1 | . . . . . . . . . 1 Intercept . | . . . . . . . . . . Searches Triggered . | . . . . . . . . . . Construction Impeded . | . . . . . . . . . . Haulers Reinforced 1 | . . . . . . . . . 1 Active Scanning Responses . | . . . . . . . . . . Cargo Convoy Interrupts . | . . . . . . . . . . Stealth | -11 -10 -10 -9 -9 -9 -8 -8 -7 -7 --------- Run | Scr Mat Min Mat Min Exi Min Mat Fac Sto Distress Signals 5 | . . . 1 . . . . . 4 Communications Jammed . | . . . . . . . . . . Distress Signals . | . . . . . . . . . . Times Spotted 115 | . 15 7 38 3 . . 5 14 33 Peak Tracking Total 8 | . 3 3 6 3 . . 2 3 8 Tactical Retreats 3 | . . . 3 . . . . . . Traps | -11 -10 -10 -9 -9 -9 -8 -8 -7 -7 ------- Run | Scr Mat Min Mat Min Exi Min Mat Fac Sto Traps Triggered 10 | . 6 . . . . . . 2 2 Indirectly . | . . . . . . . . . . Trap Hack Attempts . | . . . . . . . . . . Triggered . | . . . . . . . . . . Disarmed . | . . . . . . . . . . Reprogrammed . | . . . . . . . . . . Reused . | . . . . . . . . . . Traps Extracted . | . . . . . . . . . . Installed . | . . . . . . . . . . Triggered . | . . . . . . . . . . Machines | -11 -10 -10 -9 -9 -9 -8 -8 -7 -7 ---------- Run | Scr Mat Min Mat Min Exi Min Mat Fac Sto Machines Disabled 8 | . 1 2 2 . . . . 1 2 Max in Single Turn 2 | . 1 2 1 . . . . 1 1 Garrison Access 2 | . . . . . . . . 1 1 Machines Sabotaged . | . . . . . . . . . . Garrisons Compromised . | . . . . . . . . . . Overloaded Fab Kills . | . . . . . . . . . . Hacking | -11 -10 -10 -9 -9 -9 -8 -8 -7 -7 --------- Run | Scr Mat Min Mat Min Exi Min Mat Fac Sto Machines Accessed 32 | . 7 . 5 . . . 2 8 10 Terminals 24 | . 6 . 5 . . . 2 4 7 Fabricators 1 | . . . . . . . . 1 . Repair Stations 1 | . . . . . . . . . 1 Recycling Units 2 | . 1 . . . . . . . 1 Scanalyzers 2 | . . . . . . . . 2 . Garrison Access 2 | . . . . . . . . 1 1 Total Hacks 54 | . 12 . 7 . . . 4 14 17 Successful 27 | . 7 . 4 . . . 1 7 8 Failed 27 | . 5 . 3 . . . 3 7 9 Catastrophic 5 | . 2 . 1 . . . . . 2 Database Lockouts . | . . . . . . . . . . Manual 9 | . . . 2 . 1 . . . 6 Terminals 41 | . 11 . 7 . . . 4 9 10 Fabricators 2 | . . . . . . . . 2 . Repair Stations 3 | . . . . . . . . . 3 Recycling Units 4 | . 1 . . . . . . . 3 Scanalyzers 2 | . . . . . . . . 2 . Garrison Access 2 | . . . . . . . . 1 1 Terminal Hacks 19 | . 6 . 4 . . . 1 4 4 Prototype ID Bank 6 | . 3 . 1 . . . . 1 1 Open Door 3 | . . . . . . . . . 3 Branch Access Points 2 | . 1 . . . . . 1 . . Fabricator Index 1 | . . . . . . . . 1 . Unreport Threat 4 | . . . 2 . . . . 2 . Locate Traps 1 | . . . 1 . . . . . . Security Status 1 | . 1 . . . . . . . . Transport Status 1 | . 1 . . . . . . . . Fabricator Hacks . | . . . . . . . . . . Repair Station Hacks 2 | . . . . . . . . . 2 Scan Component 1 | . . . . . . . . . 1 Repair 1 | . . . . . . . . . 1 Recycling Unit Hacks 2 | . 1 . . . . . . . 1 Report Inventory 1 | . 1 . . . . . . . . Retrieve Components 1 | . . . . . . . . . 1 Scanalyzer 2 | . . . . . . . . 2 . Insert Component 2 | . . . . . . . . 2 . Garrison Access Hacks 2 | . . . . . . . . 1 1 Seal Access 2 | . . . . . . . . 1 1 Unauthorized Hacks . | . . . . . . . . . . Terminals . | . . . . . . . . . . Fabricators . | . . . . . . . . . . Repair Stations . | . . . . . . . . . . Recycling Units . | . . . . . . . . . . Scanalyzers . | . . . . . . . . . . Garrison Access . | . . . . . . . . . . Data Cores Recovered 2 | . . . . . . . 1 1 . Used 1 | . . . . . . . 1 . . Hacking Detections 19 | . 3 . 4 . . . 2 4 6 Full Trace Events 1 | . . . . . . . . . 1 Feedback Events . | . . . . . . . . . . Feedback Blocked . | . . . . . . . . . . Robot Schematics Acquired . | . . . . . . . . . . Robots Built . | . . . . . . . . . . Authchips . | . . . . . . . . . . Time . | . . . . . . . . . . Total Robot Build Rating . | . . . . . . . . . . Part Schematics Acquired . | . . . . . . . . . . Parts Built . | . . . . . . . . . . Authchips . | . . . . . . . . . . Time . | . . . . . . . . . . Total Part Build Rating . | . . . . . . . . . . Parts Repaired 1 | . . . . . . . . . 1 Time 16 | . . . . . . . . . 16 Parts Recycled . | . . . . . . . . . . Recycled Matter . | . . . . . . . . . . Retrieved Matter . | . . . . . . . . . . Retrieved Components 10 | . . . . . . . . . 10 Parts Scanalyzed . | . . . . . . . . . . Part Schematics Acquired . | . . . . . . . . . . Parts Damaged . | . . . . . . . . . . Bothacking | -11 -10 -10 -9 -9 -9 -8 -8 -7 -7 ------------ Run | Scr Mat Min Mat Min Exi Min Mat Fac Sto Used RIF Installer . | . . . . . . . . . . Robots Hacked . | . . . . . . . . . . Non-combat . | . . . . . . . . . . Combat . | . . . . . . . . . . Robot Hacks Applied . | . . . . . . . . . . Relay Couplers Released 1 | . . . . . . . . . 1 Machine Destruction 1 | . . . . . . . . . 1 Fabnet Peak Effective % . | . . . . . . . . . . Robots Rewired . | . . . . . . . . . . Allies Hacked . | . . . . . . . . . . Hacks Repelled . | . . . . . . . . . . Allies | -11 -10 -10 -9 -9 -9 -8 -8 -7 -7 -------- Run | Scr Mat Min Mat Min Exi Min Mat Fac Sto Total Allies 8 | . . 2 . 4 . . . . 2 Largest Group 4 | . . 2 . 4 4 4 4 . 2 Highest-Rated Group 71 | . . 37 . 71 71 71 71 . 62 Highest-Rated Ally 31 | . . 31 . 31 31 31 31 . 31 Total Orders . | . . . . . . . . . . Ally Attacks 24 | . . 3 . 7 . . 12 . 2 Total Damage 286 | . . 63 . 66 . . 157 . . Kills 6 | . . . . 3 . . 3 . . Allies Corrupted . | . . . . . . . . . . Allies Melted . | . . . . . . . . . . Intel | -11 -10 -10 -9 -9 -9 -8 -8 -7 -7 ------- Run | Scr Mat Min Mat Min Exi Min Mat Fac Sto Robot Analysis Total . | . . . . . . . . . . Derelict Logs Recovered 2 | . . 1 . 1 . . . . . Drone Launches . | . . . . . . . . . . Drone Recoveries . | . . . . . . . . . . Exploration | -11 -10 -10 -9 -9 -9 -8 -8 -7 -7 ------------- Run | Scr Mat Min Mat Min Exi Min Mat Fac Sto Turns Passed 8643 | 73 1066 338 1770 720 376 34 650 2282 1334 Spaces Moved 4699 | 50 660 181 879 437 231 21 365 1267 608 Core 12 | 12 . . . . . . . . . Treads 4122 | . 133 181 879 437 231 21 365 1267 608 Legs 565 | 38 527 . . . . . . . . Wheels . | . . . . . . . . . . Hover . | . . . . . . . . . . Flight . | . . . . . . . . . . Fastest Speed 50 | 50 120 160 160 160 160 160 160 160 160 Average Speed 155 | 120 128 160 160 160 160 160 160 160 160 Slowest Speed 240 | 200 160 160 160 160 240 160 160 160 160 Overloaded Moves . | . . . . . . . . . . Propulsion Burnouts . | . . . . . . . . . . Robots Hopped . | . . . . . . . . . . Cave-ins Triggered . | . . . . . . . . . . Exploration Rate (%) 50 | 4 97 47 65 90 61 8 31 25 73 Regions Visited 9 Branch Regions 5 Pre-discovered Areas . | . . . . . . . . . . Known Exits Taken 8 | . 1 1 1 1 1 1 1 1 . Unknown Exits Taken 1 | 1 . . . . . . . . . Scrap Searched 3 | . . 1 . 2 . . . . . Spaces Dug 1 | . . . . . . . . . 1 Terrain Destroyed 59 | . 3 . . . . . 2 2 52 Melee . | . . . . . . . . . . Projectile 20 | . . . . . . . 2 2 16 AOE 39 | . 3 . . . . . . . 36 Terrain Rammed . | . . . . . . . . . . Walls Destroyed . | . . . . . . . . . . Machines Disabled . | . . . . . . . . . . Actions | -11 -10 -10 -9 -9 -9 -8 -8 -7 -7 --------- Run | Scr Mat Min Mat Min Exi Min Mat Fac Sto Total 5725 | 60 805 209 1129 458 238 22 434 1509 861 Wait 617 | . 79 8 140 20 . 2 46 184 138 Move 4690 | 49 659 180 878 436 230 20 364 1266 608 Hop . | . . . . . . . . . . Pick Up 64 | 5 7 4 16 . . . 7 15 10 Fast Attach 24 | 6 5 1 3 . 3 . 1 1 4 Attach 14 | . 2 . 3 . . . 2 2 5 Detach 5 | . . 1 . . 1 . . 2 1 Swap 43 | . 6 3 11 1 . . 2 7 13 Drop 78 | . 7 2 22 1 4 . 9 13 20 Fire 189 | . 40 10 55 . . . 3 19 62 Melee . | . . . . . . . . . . Ram . | . . . . . . . . . . Kick . | . . . . . . . . . . Crush 1 | . . . 1 . . . . . . Escape Stasis . | . . . . . . . . . . Rewire . | . . . . . . . . . . Trap . | . . . . . . . . . . Miscellaneous . | . . . . . . . . . . Route ------- -11/Scrapyard -10/Materials (discovered 4 exits: *Mat x3 / *Min) -10/Mines -9/Materials (discovered 3 exits: *Mat x2 / *Min) -9/Mines (discovered 3 exits: *Mat x2 / *Exi) -9/Exiles -8/Mines -8/Materials -7/Factory (discovered 2 exits: *Fac / *Sto) -7/Storage History --------- Turn | Location | Event 14 | -11/Scrapyard | Discovered new exit (range 16) 74 | -11/Scrapyard | Entered Materials 311 | -10/Materials | Build established: Mutant 313 | -10/Materials | Discovered new exit (range 5) 551 | -10/Materials | Discovered new exit (range 15) 677 | -10/Materials | Identified exit to Materials 755 | -10/Materials | Discovered new exit (range 14) 770 | -10/Materials | Identified exit to Mines 1021 | -10/Materials | Discovered exit to Materials (range 7) 1140 | -10/Materials | Entered Mines 1329 | -10/Mines | Found a hidden stash of uninstalled traps 1462 | -10/Mines | Discovered exit to Materials (range 9) 1465 | -10/Mines | Learned Materials garrison access intel 1478 | -10/Mines | Entered Materials 1478 | -9/Materials | Evolved 2 slots: Utility x1, Weapon x1 1738 | -9/Materials | Discovered new exit (range 15) 2085 | -9/Materials | Build established: Scavenger-Skirmisher 2235 | -9/Materials | Identified exit to Mines 2415 | -9/Materials | Discovered new exit (range 13) 2686 | -9/Materials | Build established: Scavenger-Gunner 2944 | -9/Materials | Discovered new exit (range 6) 2965 | -9/Materials | Identified exit to Materials 3248 | -9/Materials | Entered Mines 3306 | -9/Mines | Discovered exit to Materials (range 14) 3319 | -9/Mines | Assisted by bots powering up and referring to "LRC-V3" 3516 | -9/Mines | Discovered exit to Materials (range 7) 3669 | -9/Mines | Learned Materials terminal intel 3773 | -9/Mines | Met a Derelict testing a Signal Generator 3960 | -9/Mines | Deemed a non-threat by the Exiles lab entrance 3961 | -9/Mines | Discovered new exit (range 5) 3966 | -9/Mines | Identified exit to Exiles 3968 | -9/Mines | Entered Exiles 3968 | -9/Exiles | Accompanied by 4 allies 4007 | -9/Exiles | Met 8R-AWN 4034 | -9/Exiles | Met EX-HEX 4080 | -9/Exiles | Met EX-BIN 4103 | -9/Exiles | Aligned with FarCom system 4104 | -9/Exiles | Given EX-Vault access code 4141 | -9/Exiles | Opened EX-Vault 4154 | -9/Exiles | Found Prototype Energy Gun 4154 | -9/Exiles | Identified AWS/Thermal 4183 | -9/Exiles | Found Prototype Energy Cannon 4183 | -9/Exiles | Identified Firepult 4223 | -9/Exiles | Warned to stay clear of 0b10 Research branches 4272 | -9/Exiles | Met EX-DEC 4327 | -9/Exiles | Discovered new exit (range 14) 4343 | -9/Exiles | Identified exit to Mines 4344 | -9/Exiles | Left Exiles lab with AWS/Thermal 4344 | -9/Exiles | Entered Mines 4344 | -8/Mines | Accompanied by 4 allies 4362 | -8/Mines | Discovered exit to Materials (range 8) 4378 | -8/Mines | Entered Materials 4378 | -8/Materials | Accompanied by 4 allies 4378 | -8/Materials | Evolved 2 slots: Propulsion x1, Utility x1 4379 | -8/Materials | Loaded intel: 12 terminal locations 4380 | -8/Materials | Loaded intel: 1 garrison access location 4643 | -8/Materials | Build established: Scavenger-Skirmisher 4701 | -8/Materials | Discovered new exit (range 12) 4730 | -8/Materials | Identified exit to Factory 5028 | -8/Materials | Entered Factory 5028 | -7/Factory | Evolved 2 slots: Propulsion x1, Utility x1 5865 | -7/Factory | Discovered new exit (range 7) 5875 | -7/Factory | Identified exit to Factory 7187 | -7/Factory | Build established: Skirmisher 7300 | -7/Factory | Discovered new exit (range 4) 7305 | -7/Factory | Identified exit to Storage 7310 | -7/Factory | Entered Storage 7376 | -7/Storage | Garrison activated, responded to threat 7710 | -7/Storage | Build established: Tank 8088 | -7/Storage | Build established: Scavenger-Tank 8522 | -7/Storage | Repaired Imp. Treads 8548 | -7/Storage | Met a pair of Derelict thieves 8644 | -7/Storage | Self-destructed Last Messages --------------- 08624_ M-28 Smith fits Backup Power III on G-47 Trooper. 08626_ Overheating: Matter decay (-44). 08627_ Slug penetrates G-47 Trooper. 08630_ Power failure, Imp. Deuterium Engine shutdown. 08630_ G-47 Trooper destroyed. 08632_ Overheating: Energy bleed (-58). 08633_ Penetrated by Slug. 08634_ Broken Lgt. Treads destroyed. 08636_ Imp. Medium Armor Plating destroyed. 08637_ Power failure, Imp. Deuterium Engine shutdown. 08637_ Overheating: Adv. Targeting Computer damaged (-11). 08639_ Slug penetrates G-47 Trooper. 08641_ Slug penetrates Wall. 08641_ Gauss Rifle severed. 08642_ Overheating: Matter decay (-22). 08644_ Overheating: Imp. Treads damaged (-73). 08644_ Overheating: Adv. Assault Cannon damaged (-35). 08644_ Overheating: Adv. Targeting Computer damaged (-4). 08644_ Overheating: Imp. Signal Interpreter damaged (-15). 08644_ Adv. Assault Cannon destroyed. Map ----- +----------------------------------------------------+ | ???# #?????# #% | | ???# #?????# / #% | | ???# #?????# / # | | ???# #?????######+##### # | | ???# #?????# ######### | | ???# #?""""#]! """ ""#?????? | | ???# ### ## ! """ ""#?????? | | ???# ##T # !! """ T"#?????? | | ####+## ### ## =]*] ""#?????? | | # # ## ""!] ""#?????? | | # """ # ## "Y[[[ ###?????? | | # "R +h ##!""* % #???????? | | # """ # ## % #???????? | | # "" # ##+#######??????## | | # + % ! #??????????# | | # # h [ #???????????# | | # """ ## * + "?????????? | | # """ ##!!! # ==#??????? | | # """ ##!!! #??==#??????? | | # ##!!m """"" #?????????### | | # ##uu![ """"" #?????????# | | ?#######%[== """"" #????????### | | ???????#!gg #?????????## | | ???????#%gg % #?????????# | | ?????###gl######## #?????????# | | ?????#[%!@##???????+###?????????# | | ?????#%%% T#??????? ????????????# | | ?????##" "###???????????????????# | | ?????#! #???????????????????# | | ?????# ]]#???????????????????# | | ?????# [ ] #???????????????????# | | ?????#[=[ ]#???????????????????# | | ?????########???????????????????# | | ????????????????????????????????## | | ?????????????????????????????????? | | ?????????????????????????????????? | | ????????????????Y????????????????? | | ?????????????????????????????????? | | ?????????????????????????????????? | | ?????????????????????????????????? | | ?????????????????????????????????? | | ?????????????????????????????????? | | ?????????????????????????????????? | | ?????????????????????????????????? | | ?????????????????????????????????? | | ?????????????????????????????????? | | ?????????????????????????????????? | | ?????????????????????????????????? | | ?????????????????????????????????? | | ?????????????????????????????????? | +----------------------------------------------------+ Best States ------------- Heat Dissipation 48 Energy Generation 16 Energy Capacity 290 Matter Stores 300 Matter Capacity 300 Sight Range 16 Terrain Scan Density 10 Armor Coverage 600 Propulsion Shielding 33 Evasion (%) 55 Targeting Accuracy 8 Recoil Reduction 4 Item Schematics ----------------- None Robot Schematics ------------------ None Fabricated ------------ Nothing Alien Tech Used ----------------- None Achievements -------------- None Challenges ------------ None Game ------ Seed MolecularFlyingExtractor Manual? 0 Play Time 01:32:04 Cumulative 39.8 hours Start 2022.10.27 @ 02:51:10 End 2022.10.27 @ 14:37:42 Sessions 5 Manual Loads 0 Difficulty Rogue Special Mode None Game No. 28 Rogue 27 Adventurer 1 Explorer 0 Win Type - Total 0 Types 0/0/0/0/0/0/0/0/0 Lore% 22 Gallery% 35 Achievement% 26 Wizard Run 0 Options --------- ASCII 0 Keyboard 0 Movement Numpad Keybinds 0 Fullscreen 2 Font 16/Terminus Map View 76x50 Tactical HUD 1 Map Filters NONE Filters NONE Steam 1 RUN: af6965e5-a1b0-4d23-b300-271dbc48ca3c